bitfinex-derivatives/quotes_ETHF0:USTF0_20250624
["timestamp","ask_amount","ask_price","bid_price","bid_amount"]
[1750780930426,37.09999,2444.0,2443.8,0.81803]
[1750780930720,0.81799,2443.9,2443.8,0.81803]
[1750780930924,0.81799,2443.9,2443.7,0.81803]
[1750780931124,0.81799,2443.9,2443.8,0.81803]
[1750780931323,0.81799,2443.9,2443.7,0.81804]
[1750780931523,0.81803,2443.8,2443.6,2.13547]
[1750780931925,0.81802,2443.9,2443.7,0.81806]
[1750780932124,37.83221,2444.2,2444.0,0.81796]
[1750780932817,0.747,2444.3,2443.8,2.04507]
[1750780933012,28.78983,2444.4,2444.2,0.81787]
[1750780933217,31.1798,2444.4,2443.7,5.10247641]
[1750780933420,0.81794,2444.1,2443.9,0.81797]
[1750780933729,0.81791,2444.2,2444.0,0.81794]
[1750780933932,0.81791,2444.2,2443.8,1.4278]
[1750780934124,0.81791,2444.2,2444.0,0.81795]
[1750780934428,0.81791,2444.2,2444.0,0.81794]
[1750780934623,27.963,2444.3,2443.9,0.81798]
[1750780934819,0.6861,2444.2,2443.8,1.4278]
[1750780935026,0.6861,2444.2,2444.1,0.81793]
[1750780935227,0.81795,2444.1,2443.8,1.4278]
[1750780935539,0.6861,2444.2,2443.8,3.47286]
[1750780935726,1.50401,2444.2,2443.8,3.47286]
[1750780936217,27.963,2444.3,2444.2,0.81789]
[1750780936422,37.05088,2444.3,2444.2,0.81789]
[1750780936624,0.81791,2444.2,2444.1,0.81793]
[1750780936928,37.05088,2444.3,2444.2,0.81789]
[1750780937125,47.167,2444.5,2444.1,2.04479]
[1750780937331,75.92879,2444.5,2444.4,0.81783]
[1750780937521,27.944,2444.5,2444.4,0.81783]
[1750780937719,8.9771,2444.6,2444.2,3.46392]
[1750780938033,8.286,2444.6,2444.3,3.2078]
[1750780938326,8.286,2444.6,2444.5,0.81779]
[1750780938730,9.10378,2444.6,2444.4,0.81779]
[1750780939238,10.33041,2444.6,2444.2,0.81787]
[1750780939531,0.81786,2444.4,2444.2,0.81787]
[1750780939732,0.81786,2444.4,2443.8,2.62747641]
[1750780939733,32.01223,2444.4,2443.8,1.20827641]
[1750780940027,0.818,2443.9,2443.7,0.81806]
[1750780940236,0.81803,2443.8,2443.6,4.02587]
[1750780940435,36.203,2443.9,2443.6,3.2078]
[1750780940630,36.203,2443.9,2443.8,0.81803]
[1750780941038,37.02102,2443.9,2443.7,0.81804]
[1750780941228,0.81803,2443.8,2443.7,0.81804]
[1750780941431,3.2078,2444.1,2444.0,0.81796]
[1750780941732,0.7313,2444.3,2444.2,0.81789]
[1750780942232,9.0163,2444.3,2444.2,0.81789]
[1750780942834,3.2078,2444.4,2444.3,0.81786]
[1750780943047,11.4928,2444.4,2444.3,0.81786]
[1750780943240,8.285,2444.4,2444.3,0.81786]
[1750780943428,36.182,2444.6,2444.2,3.2078]
[1750780943629,36.182,2444.6,2444.5,0.81779]
[1750780944338,36.9174,2444.7,2444.6,0.81776]
[1750780944637,36.9144,2444.7,2444.6,0.81776]
[1750780945040,0.7384,2444.7,2444.6,0.81776]
[1750780945635,6.0,2445.0,2444.9,0.81766]
[1750780945839,42.167,2445.0,2444.9,0.81766]
[1750780946040,42.167,2445.0,2444.5,4.5467]
[1750780946239,0.7095,2444.9,2444.8,0.81769]
[1750780946434,0.81769,2444.8,2444.7,0.8177]
[1750780946634,2.95728,2444.9,2444.8,0.81769]
[1750780946834,2.1396,2444.9,2444.8,0.81769]
[1750780947042,2.95726,2444.9,2444.7,0.8177]
[1750780947247,2.95726,2444.9,2444.8,0.81769]
[1750780947728,2.1396,2444.9,2444.8,0.81769]
[1750780947929,2.95726,2444.9,2444.8,0.81769]
[1750780948333,2.1396,2444.9,2444.8,0.81769]
[1750780948543,0.7095,2444.9,2444.8,0.81769]
[1750780950136,0.7095,2444.9,2444.5,4.41607641]
[1750780950335,0.81771,2444.8,2444.5,2.02604641]
[1750780950554,36.135,2444.8,2444.7,0.81771]
[1750780950833,0.7095,2444.9,2444.7,0.81771]
[1750780951038,28.5575,2444.9,2444.8,0.81769]
[1750780951241,36.8415,2444.9,2444.6,1.20827641]
[1750780951537,37.65919,2444.9,2444.6,0.81776]
[1750780952039,37.65919,2444.9,2444.7,0.81772]
[1750780952240,0.7095,2444.9,2444.8,0.81769]
[1750780952440,36.8385,2444.9,2444.8,0.81769]
[1750780952940,37.65616,2444.9,2444.6,1.20827641]
[1750780953137,36.8385,2444.9,2444.6,1.20827641]
[1750780953442,0.81783,2444.4,2444.3,1.20827641]
[1750780953742,0.81783,2444.4,2444.1,1.61103521]
[1750780953743,0.81793,2444.1,2444.0,1.20827641]
[1750780953935,0.81796,2444.0,2443.8,1.20827641]
[1750780954132,36.111,2443.9,2443.8,1.20827641]
[1750780954336,36.92899,2443.9,2443.8,1.20827641]
[1750780954640,36.111,2443.9,2443.8,2.02630641]
[1750780954842,36.112,2443.9,2443.8,2.42906521]
[1750780955238,36.112,2443.9,2443.8,1.61103521]
[1750780955437,36.112,2443.9,2443.8,2.02836532]
[1750780955639,36.112,2443.9,2443.8,1.21030913]
[1750780955845,36.93,2443.9,2443.8,1.21030913]
[1750780956240,36.112,2443.9,2443.8,1.21030913]
[1750780956743,36.92999,2443.9,2443.8,1.21030913]
[1750780956937,36.92999,2443.9,2443.7,1.21030913]
[1750780956938,37.4982,2443.9,2443.7,1.21030913]
[1750780957146,0.7241,2443.8,2443.7,1.21030913]
[1750780958132,0.7241,2443.8,2443.7,2.02836913]
[1750780958336,36.6911,2443.8,2443.7,0.81806]
[1750780958536,0.7241,2443.8,2443.7,0.81806]
[1750780958745,36.6881,2443.8,2443.7,0.81806]
[1750780959248,36.6881,2443.8,2443.6,1.61103521]
[1750780959440,0.81806,2443.7,2443.6,1.21058737]
[1750780959642,2.16356,2443.7,2443.6,1.21058737]
[1750780960341,0.81809,2443.6,2443.4,1.21058737]
[1750780960551,29.95563,2443.5,2443.4,1.21058737]
[1750780961046,29.95563,2443.5,2443.3,1.61103521]
[1750780961047,0.81816,2443.4,2443.3,1.21058737]
[1750780961246,0.81819,2443.3,2443.2,1.21058737]
[1750780961449,28.5316,2443.3,2443.2,1.21058737]
[1750780961639,35.949,2443.5,2443.3,0.81818]
[1750780961835,35.949,2443.5,2443.3,1.21058737]
[1750780962134,0.81816,2443.4,2443.3,1.21058737]
[1750780962340,0.81816,2443.4,2443.2,2.02880737]
[1750780962551,27.782,2443.3,2443.1,2.42926521]
[1750780962739,29.34179,2443.3,2443.2,1.20983381]
[1750780963040,28.5236,2443.3,2443.2,1.20983381]
[1750780963239,28.5236,2443.3,2443.2,0.81823]
[1750780963440,36.6816,2443.3,2443.2,2.02759575]
[1750780963838,0.7416,2443.3,2443.2,1.20936575]
[1750780964146,36.6786,2443.3,2443.2,2.02759575]
[1750780965348,37.49679,2443.3,2443.2,1.20936575]
[1750780965543,37.49679,2443.3,2443.1,1.20936575]
[1750780965544,0.81823,2443.2,2443.1,1.20936575]
[1750780965744,0.81826,2443.1,2443.0,1.20936575]
[1750780965949,28.58226,2443.1,2443.0,1.20936575]
[1750780966149,0.81829,2443.0,2442.9,4.41716575]
[1750780966343,4.5113,2443.0,2442.5,1.20936575]
[1750780966542,38.65713,2442.9,2442.4,2.02785575]
[1750780966752,38.65713,2442.9,2442.4,1.20936575]
[1750780966753,0.81846,2442.5,2442.4,1.20936575]
[1750780967045,0.81849,2442.4,2442.3,1.20936575]
[1750780967246,35.921,2442.4,2442.3,1.20936575]
[1750780967446,35.921,2442.4,2442.2,4.41716575]
[1750780967644,35.921,2442.4,2442.2,5.71096575]
[1750780967845,35.921,2442.4,2442.3,0.81853]
[1750780968852,27.753,2442.4,2442.3,0.81853]
[1750780969045,27.753,2442.4,2442.3,2.11233]
[1750780969751,0.81841,2442.7,2442.5,0.81845]
[1750780969954,35.916,2442.6,2442.5,0.81845]
[1750780970444,8.165,2443.0,2442.9,0.8183]
[1750780971055,8.165,2443.0,2442.9,1.3932]
[1750780971250,8.165,2443.0,2442.9,2.21153]
[1750780971751,8.98329,2443.0,2442.9,1.3932]
[1750780971949,8.98329,2443.0,2442.8,0.81834]
[1750780972847,0.81829,2443.0,2442.8,0.81834]
[1750780973253,0.81829,2443.0,2442.8,0.81836]
[1750780973454,35.905,2443.1,2442.8,0.81836]
[1750780973455,35.905,2443.1,2443.0,0.81829]
[1750780973957,0.81823,2443.2,2443.0,0.81829]
[1750780974156,35.894,2443.1,2443.0,0.81829]
[1750780974452,36.70426,2443.1,2442.8,3.2078]
[1750780974751,2.04574,2443.0,2442.5,2.02781575]
[1750780974961,2.04574,2443.0,2442.5,0.81845]
[1750780974962,0.81836,2442.8,2442.5,0.81845]
[1750780975155,35.881,2442.7,2442.5,0.81845]
[1750780975853,35.881,2442.7,2442.6,0.81843]
[1750780976454,0.7172,2442.8,2442.7,0.81839]
[1750780976655,36.5912,2442.8,2442.7,0.81839]
[1750780976962,36.5892,2442.8,2442.7,0.81839]
[1750780977654,8.165,2443.1,2442.7,3.2078]
[1750780977861,36.68929,2443.1,2442.9,0.81832]
[1750780978358,8.165,2443.1,2443.0,0.81829]
[1750780978756,35.861,2443.1,2443.0,0.81829]
[1750780979457,35.861,2443.1,2443.0,2.19069]
[1750780980461,47.95119,2443.4,2443.0,1.3724]
[1750780980760,8.165,2443.1,2443.0,2.19069]
[1750780981060,47.95118,2443.4,2443.0,2.19069]
[1750780981061,47.133,2443.4,2443.3,0.81819]
[1750780981259,82.979,2443.4,2443.3,0.81819]
[1750780982059,0.81801,2443.9,2443.4,2.04536]
[1750780982255,8.98301,2443.9,2443.8,0.81802]
[1750780982449,8.165,2443.9,2443.8,0.81802]
[1750780982955,35.835,2443.9,2443.8,0.81802]
[1750780983150,36.65301,2443.9,2443.7,2.99264]
[1750780983353,35.835,2443.9,2443.8,0.81803]
[1750780983754,47.145,2444.2,2443.8,8.46266]
[1750780983962,8.165,2444.2,2444.1,0.81793]
[1750780984765,8.165,2444.2,2444.1,2.23553]
[1750780985472,0.7026,2444.5,2444.4,0.81783]
[1750780985473,36.5176,2444.5,2444.4,0.81783]
[1750780985670,0.7026,2444.5,2444.3,0.81784]
[1750780985865,27.65,2444.4,2444.3,0.81784]
[1750780986370,27.65,2444.4,2444.2,1.20540852]
[1750780986769,27.65,2444.4,2444.3,0.81786]
[1750780986971,27.65,2444.4,2444.2,2.02327852]
[1750780987372,27.65,2444.4,2444.3,0.81786]
[1750780987872,28.46783,2444.4,2444.2,2.02327852]
[1750780988083,27.65,2444.4,2444.3,0.81786]
[1750780988472,28.46783,2444.4,2444.2,0.81787]
[1750780989077,27.65,2444.4,2444.3,0.81786]
[1750780989272,0.7026,2444.5,2444.4,0.81783]
[1750780989478,8.7476,2444.5,2444.4,0.81783]
[1750780989677,36.3716,2444.5,2444.4,0.81783]
[1750780990475,37.18939,2444.5,2444.4,0.81783]
[1750780990676,36.3716,2444.5,2444.4,0.81783]
[1750780991377,36.3716,2444.5,2444.0,1.20540852]
[1750780991578,0.81783,2444.4,2444.2,0.81787]
[1750780991778,28.42583,2444.4,2444.3,0.81786]
[1750780991972,28.42583,2444.4,2444.2,0.81787]
[1750780992181,27.608,2444.4,2443.9,4.41320852]
[1750780992476,0.81798,2444.0,2443.8,0.81802]
[1750780992678,36.3485,2443.9,2443.5,4.41320852]
[1750780992879,28.8971,2443.8,2443.7,0.81806]
[1750780993077,28.8971,2443.8,2443.4,2.04541]
[1750780993284,1.3946,2443.9,2443.8,0.81803]
[1750780993476,37.0376,2443.9,2443.4,3.2078]
[1750780993675,39.15071,2443.9,2443.4,3.2078]
[1750780993876,0.81804,2443.8,2443.6,0.81808]
[1750780994178,27.597,2443.7,2443.6,0.81808]
[1750780995077,3.2078,2444.0,2443.4,4.41320852]
[1750780995277,1.54701,2444.2,2444.1,0.81793]
[1750780995477,28.3171,2444.2,2444.1,0.81793]
[1750780995678,1.4644,2444.7,2444.5,0.81779]
[1750780995878,35.629,2444.6,2444.5,0.81779]
[1750780996979,36.44676,2444.6,2444.5,0.81779]
[1750780997178,8.044,2444.6,2444.5,0.81779]
[1750780997381,35.618,2444.6,2444.5,0.81779]
[1750780998085,36.43577,2444.6,2444.4,0.8178]
[1750780998285,37.0375,2444.6,2444.5,0.81779]
[1750780998981,35.611,2444.6,2444.5,0.81779]
[1750780999295,1.4644,2444.7,2444.6,0.81776]
[1750781000282,0.81777,2444.6,2444.5,0.81779]
[1750781000482,28.37376,2444.6,2444.5,0.81779]
[1750781000883,27.556,2444.6,2444.5,0.81779]
[1750781001087,0.81779,2444.5,2444.4,0.8178]
[1750781001279,28.9622,2444.6,2444.4,0.81782]
[1750781001476,1.4062,2444.5,2444.4,0.81782]
[1750781001687,1.4062,2444.5,2444.1,3.25022852]
[1750781001886,35.593,2444.4,2444.1,2.04482]
[1750781002086,35.593,2444.4,2444.0,4.41320852]
[1750781002386,0.81793,2444.1,2444.0,4.41320852]
[1750781002589,0.81793,2444.1,2444.0,4.02576]
[1750781002885,28.3629,2444.2,2444.1,0.81793]
[1750781003081,27.545,2444.2,2444.1,0.81793]
[1750781003678,28.2925,2444.2,2444.1,0.81793]
[1750781004087,29.11039,2444.2,2444.1,0.81793]
[1750781004586,0.7475,2444.2,2444.1,0.81793]
[1750781004788,35.583,2444.2,2444.1,0.81793]
[1750781004990,35.583,2444.2,2444.1,2.14523]
[1750781005487,1.5653,2444.5,2444.4,0.81783]
[1750781005687,9.6083,2444.5,2444.4,0.81783]
[1750781005880,37.1323,2444.5,2444.4,0.81783]
[1750781006285,35.567,2444.5,2444.4,0.81783]
[1750781006489,0.81785,2444.4,2444.2,1.20540852]
[1750781006689,0.81785,2444.4,2444.3,0.81782]
[1750781006990,0.81786,2444.3,2444.2,0.81787]
[1750781007189,1.49506,2444.3,2444.2,0.81787]
[1750781007593,0.81789,2444.2,2444.1,1.20540852]
[1750781007784,0.81793,2444.1,2444.0,4.41320852]
[1750781008092,1.53833,2444.1,2444.0,4.41320852]
[1750781008389,1.53833,2444.1,2444.0,4.02576]
[1750781008893,0.7204,2444.1,2444.0,5.63679521]
[1750781009684,1.53833,2444.1,2444.0,5.63679521]
[1750781010491,1.53833,2444.1,2444.0,4.81883521]
[1750781010681,0.7204,2444.1,2443.9,1.20770636]
[1750781010990,2.04499,2443.9,2443.1,1.82303112]
[1750781011192,2.04499,2443.9,2442.9,0.81831]
[1750781011193,0.81828,2443.1,2442.9,0.81833]
[1750781011383,35.536,2443.0,2442.9,0.81833]
[1750781012191,1.4537,2443.3,2442.8,3.39439]
[1750781012388,35.534,2443.1,2443.0,0.81829]
[1750781012791,35.531,2443.1,2443.0,0.81829]
[1750781013191,36.34926,2443.1,2442.9,0.81831]
[1750781013387,35.531,2443.1,2443.0,0.81829]
[1750781013893,35.531,2443.1,2443.0,0.81827]
[1750781014286,3.2078,2443.8,2443.0,8.2078]
[1750781014594,28.30013,2443.5,2443.4,0.81814]
[1750781015093,27.482,2443.5,2443.4,0.81814]
[1750781015397,28.30013,2443.5,2443.4,0.81814]
[1750781015588,27.482,2443.5,2443.4,0.81816]
[1750781015896,0.81808,2443.7,2443.3,5.25326]
[1750781016081,3.2078,2443.8,2443.7,0.81806]
[1750781016389,35.516,2443.8,2443.7,0.81806]
[1750781016788,35.516,2443.8,2443.7,2.25016]
[1750781018682,0.81798,2444.0,2443.7,1.4321]
[1750781018883,36.2119,2444.2,2443.8,1.4321]
[1750781019095,36.2119,2444.2,2444.1,0.81793]
[1750781019286,8.7559,2444.2,2444.1,0.81793]
[1750781019693,7.938,2444.2,2444.1,0.81793]
[1750781019899,35.389,2444.3,2443.9,0.7365]
[1750781020190,0.81796,2444.1,2444.0,0.81794]
[1750781020391,28.26696,2444.1,2444.0,0.81794]
[1750781020697,36.20196,2444.1,2444.0,0.81794]
[1750781021085,35.384,2444.1,2444.0,0.81794]
[1750781021396,4.02565,2444.4,2444.3,0.81786]
[1750781021582,39.40465,2444.4,2444.3,0.81786]
[1750781021786,38.5868,2444.4,2444.3,0.81786]
[1750781021989,7.937,2444.4,2444.3,0.81786]
[1750781022192,35.374,2444.4,2444.3,0.81786]
[1750781024193,36.19182,2444.4,2444.3,0.81786]
[1750781025305,35.374,2444.4,2444.3,0.81786]
[1750781025595,36.19182,2444.4,2444.3,0.81786]
[1750781026097,35.374,2444.4,2444.3,0.81786]
[1750781026295,0.81777,2444.6,2444.5,0.81779]
[1750781026603,0.81781,2444.5,2444.4,0.8178]
[1750781026997,35.352,2444.6,2444.2,2.04474]
[1750781027194,35.352,2444.6,2444.1,2.128]
[1750781027195,37.39643,2444.6,2444.1,2.128]
[1750781027400,0.8178,2444.5,2444.4,0.81781]
[1750781027703,35.352,2444.6,2444.3,0.81784]
[1750781027999,0.81782,2444.4,2444.3,0.81784]
[1750781028196,0.81786,2444.3,2444.2,0.81788]
[1750781028493,0.81789,2444.2,2444.0,3.2078]
[1750781028693,8.75489,2444.2,2444.1,0.8179]
[1750781028901,36.15689,2444.2,2444.1,0.8179]
[1750781029205,35.339,2444.2,2444.1,0.8179]
[1750781029698,8.6843,2444.3,2444.2,0.81789]
[1750781029901,36.0803,2444.3,2444.2,0.81789]
[1750781030098,47.94974,2444.7,2444.6,0.81776]
[1750781030304,55.88672,2444.7,2444.6,0.81776]
[1750781030503,83.27672,2444.7,2444.6,0.81776]
[1750781030706,82.459,2444.7,2444.6,0.81776]
[1750781031510,0.81777,2444.6,2444.5,0.81777]
[1750781032003,0.81777,2444.6,2444.3,5.25244]
[1750781032004,0.81782,2444.4,2444.3,4.02565]
[1750781032205,27.385,2444.4,2444.3,4.02565]
[1750781032804,28.20282,2444.4,2444.3,0.81785]
[1750781033005,28.88552,2444.4,2444.3,0.81785]
[1750781033205,0.81787,2444.3,2444.2,0.81787]
[1750781033406,0.8179,2444.2,2444.1,0.8179]
[1750781033805,28.18992,2444.2,2444.1,0.8179]
[1750781034107,0.81799,2444.0,2443.9,0.81798]
[1750781034302,27.371,2444.0,2443.7,2.41439183]
[1750781034503,0.81806,2443.7,2443.6,4.02587]
[1750781034705,28.18605,2443.8,2443.7,0.81806]
[1750781035503,0.81806,2443.7,2443.6,4.02587]
[1750781036508,0.81806,2443.7,2443.6,3.2078]
[1750781037304,27.368,2443.8,2443.7,0.81806]
[1750781037812,1.49831,2443.9,2443.8,0.81803]
[1750781038116,35.9753,2443.9,2443.7,0.81804]
[1750781038309,35.9753,2443.9,2443.6,4.02588]
[1750781038510,35.9753,2443.9,2443.8,0.81803]
[1750781038920,35.9663,2443.9,2443.8,0.81803]
[1750781039325,35.9633,2443.9,2443.8,0.81803]
[1750781040412,0.81786,2444.3,2443.8,2.04504]
[1750781040611,7.937,2444.4,2444.3,0.81785]
[1750781040811,35.274,2444.4,2444.3,0.81785]
[1750781041221,3.2078,2444.5,2444.4,0.81782]
[1750781041516,38.4788,2444.5,2444.4,0.81782]
[1750781041706,35.271,2444.5,2444.4,0.81782]
[1750781042417,0.81784,2444.4,2444.3,0.81784]
[1750781042614,35.271,2444.5,2444.4,0.81782]
[1750781043319,36.08079,2444.5,2444.4,0.81782]
[1750781043516,8.75479,2444.5,2444.4,0.81782]
[1750781043713,36.07779,2444.5,2444.4,0.81782]
[1750781044108,35.26,2444.5,2444.4,0.81782]
[1750781044511,1.4102,2444.6,2444.5,0.81779]
[1750781044718,35.9499,2444.6,2444.5,2.42831782]
[1750781044909,35.249,2444.6,2444.5,2.42831782]
[1750781045112,7.936,2444.6,2444.5,4.55738183]
[1750781047308,6.7288,2445.0,2444.7,2.04431]
[1750781047619,6.7288,2445.0,2444.8,2.42955363]
[1750781047620,35.235,2444.9,2444.8,2.42955363]
[1750781048318,7.936,2444.9,2444.8,2.42955363]
[1750781048714,8.75366,2444.9,2444.8,2.42955363]
[1750781049013,6.7288,2445.0,2444.9,0.81766]
[1750781049215,0.8175,2445.4,2445.3,0.81752]
[1750781049420,0.81759,2445.1,2445.0,1.61186363]
[1750781049605,35.124,2445.1,2444.8,2.42954363]
[1750781049812,0.81769,2444.8,2444.7,1.61186363]
[1750781050125,27.286,2444.8,2444.7,2.42958363]
[1750781050818,27.286,2444.8,2444.6,2.41439183]
[1750781050819,0.81772,2444.7,2444.6,1.61186363]
[1750781051013,9.39762,2444.7,2444.6,1.61186363]
[1750781051220,0.81776,2444.6,2444.5,1.61186363]
[1750781051414,28.09476,2444.6,2444.5,2.42965363]
[1750781051612,27.277,2444.6,2444.5,2.42965363]
[1750781051818,28.09476,2444.6,2444.5,2.42965363]
[1750781052514,28.09476,2444.6,2444.5,1.61186363]
[1750781052714,0.81779,2444.5,2444.4,4.81966363]
[1750781052922,0.81779,2444.5,2444.4,4.02562]
[1750781053109,0.81779,2444.5,2444.4,3.2078]
[1750781053315,28.09478,2444.6,2444.5,0.81779]
[1750781053526,28.09478,2444.6,2444.4,4.81966363]
[1750781053718,0.81779,2444.5,2444.4,3.2078]
[1750781053925,0.81782,2444.4,2444.3,1.61186363]
[1750781054221,28.08082,2444.4,2444.3,1.61186363]
[1750781054722,27.263,2444.4,2444.3,2.42972363]
[1750781055510,8.5799,2444.7,2444.6,0.81776]
[1750781055511,0.7449,2444.7,2444.6,0.81776]
[1750781055720,0.81778,2444.6,2444.5,0.81779]
[1750781056026,35.8409,2444.7,2444.3,6.86429363]
[1750781056218,39.11152,2444.8,2444.5,1.61186363]
[1750781056619,38.2938,2444.8,2444.7,0.81772]
[1750781057028,35.90369,2444.8,2444.7,0.81772]
[1750781057232,35.086,2444.8,2444.7,0.81772]
[1750781057527,35.086,2444.8,2444.4,2.42968363]
[1750781057528,0.81779,2444.5,2444.4,2.42968363]
[1750781057724,0.81782,2444.4,2444.3,5.63749363]
[1750781057932,35.89582,2444.4,2444.3,5.63749363]
[1750781058228,0.81786,2444.3,2444.2,1.61186363]
[1750781058421,2.89576,2444.3,2444.2,1.61186363]
[1750781058628,0.81789,2444.2,2444.1,2.42978363]
[1750781058822,0.81793,2444.1,2444.0,5.63762363]
[1750781059339,0.81793,2444.1,2444.0,4.81966363]
[1750781059523,0.81793,2444.1,2444.0,5.63762363]
[1750781059930,0.81793,2444.1,2444.0,4.81966363]
[1750781060122,29.4156,2444.2,2444.1,0.81793]
[1750781060322,27.242,2444.2,2444.1,0.81793]
[1750781060520,8.5834,2444.5,2444.1,1.61186363]
[1750781060726,27.237,2444.4,2444.3,0.81786]
[1750781062222,0.7474,2444.5,2444.4,0.81782]
[1750781062424,35.8114,2444.5,2444.4,0.81782]
[1750781062625,1.56519,2444.5,2444.4,0.81782]
[1750781062825,0.81784,2444.4,2444.3,0.81784]
[1750781063330,36.62021,2444.5,2444.4,0.81782]
[1750781063727,0.81783,2444.4,2444.3,0.81783]
[1750781063931,36.62021,2444.5,2444.4,0.81782]
[1750781064633,0.81783,2444.4,2444.3,0.81783]
[1750781064821,35.8024,2444.5,2444.4,0.81782]
[1750781065022,0.81783,2444.4,2444.3,0.81783]
[1750781065432,0.81786,2444.3,2444.2,1.61186363]
[1750781065628,28.02386,2444.3,2444.2,1.61186363]
[1750781065831,32.206,2444.3,2444.0,1.61186363]
[1750781066034,0.81799,2443.9,2443.8,1.61186363]
[1750781066235,0.81803,2443.8,2443.7,1.61186363]
[1750781066537,0.81806,2443.7,2443.6,3.2078]
[1750781066727,0.81809,2443.6,2443.5,1.61248216]
[1750781067232,0.81813,2443.5,2443.4,1.61248216]
[1750781067433,35.85313,2443.5,2443.4,1.61248216]
[1750781067630,0.81816,2443.4,2443.3,4.82003691]
[1750781067833,9.24776599,2443.8,2443.3,4.82003691]
[1750781067834,3.2078,2444.2,2443.3,7.02379183]
[1750781068130,4.0257,2444.2,2444.0,0.81796]
[1750781068434,0.81796,2444.0,2443.9,0.81797]
[1750781068634,82.96794,2444.1,2443.9,0.81797]
[1750781068835,82.96794,2444.1,2443.9,0.81798]
[1750781069426,82.15,2444.1,2444.0,0.81796]
[1750781069639,47.121,2444.1,2444.0,0.81796]
[1750781069828,82.153,2444.1,2444.0,0.81796]
[1750781070137,82.97093,2444.1,2444.0,0.81796]
[1750781070634,82.153,2444.1,2444.0,0.81796]
[1750781071137,47.121,2444.1,2444.0,0.81796]
[1750781071335,35.018,2444.1,2444.0,0.81796]
[1750781073739,35.018,2444.1,2443.9,1.61208953]
[1750781073935,35.83594,2444.1,2443.8,1.61208953]
[1750781074237,35.83594,2444.1,2443.9,0.81798]
[1750781074238,0.81797,2444.0,2443.9,0.81798]
[1750781075036,0.81791,2444.2,2444.1,0.81792]
[1750781075227,35.81891,2444.2,2444.1,0.81792]
[1750781075830,1.4035,2444.4,2443.9,1.61208953]
[1750781076027,8.65491,2444.2,2444.1,0.81791]
[1750781076231,7.837,2444.2,2444.1,0.81791]
[1750781077226,7.837,2444.2,2443.9,1.61208953]
[1750781077432,0.81796,2444.0,2443.8,2.43010953]
[1750781077632,27.97199,2443.9,2443.8,1.61208953]
[1750781077828,0.81806,2443.7,2443.6,5.62219183]
[1750781078033,35.80706,2443.7,2443.6,5.62219183]
[1750781078241,34.989,2443.7,2443.6,4.02589]
[1750781078440,0.6858,2443.9,2443.6,5.25303]
[1750781078645,27.96803,2443.8,2443.7,2.24456]
[1750781078838,27.96803,2443.8,2443.7,0.81806]
[1750781079144,27.15,2443.8,2443.7,0.81806]
[1750781079345,27.15,2443.8,2443.7,2.24456]
[1750781079643,27.96803,2443.8,2443.7,0.81806]
[1750781079840,27.15,2443.8,2443.6,5.62219183]
[1750781080140,27.96804,2443.8,2443.7,2.43096015]
[1750781081544,27.15,2443.8,2443.7,2.43096015]
[1750781081740,8.5228,2443.9,2443.7,2.43096015]
[1750781081741,0.6858,2443.9,2443.7,3.03350015]
[1750781082044,7.742,2443.9,2443.8,2.23863]
[1750781082247,1.39,2444.4,2443.9,2.04496]
[1750781082443,7.742,2444.2,2444.1,0.81793]
[1750781082743,7.742,2444.2,2444.1,2.23853]
[1750781082944,7.742,2444.2,2444.1,1.4206]
[1750781083241,34.871,2444.2,2444.1,2.23853]
[1750781084842,0.81785,2444.4,2444.1,3.46542]
[1750781085145,35.68685,2444.4,2444.3,0.81783]
[1750781085446,8.55985,2444.4,2444.3,0.81783]
[1750781085746,7.742,2444.4,2444.3,0.81783]
[1750781085945,8.55982,2444.4,2444.3,0.81783]
[1750781086147,7.742,2444.4,2444.3,0.81783]
[1750781086547,7.742,2444.4,2444.3,2.19583]
[1750781086846,8.55982,2444.4,2444.3,2.19583]
[1750781087041,8.55982,2444.4,2444.3,3.80905471]
[1750781087245,7.742,2444.4,2444.3,2.43105471]
[1750781087438,8.55982,2444.4,2444.3,1.61322471]
[1750781087649,35.66782,2444.4,2444.3,1.61322471]
[1750781088145,35.66785,2444.4,2444.2,0.81788]
[1750781088348,0.81786,2444.3,2444.2,0.81788]
[1750781088539,34.85,2444.4,2444.1,2.41983707]
[1750781088739,0.81787,2444.3,2444.2,0.81786]
[1750781088940,35.66785,2444.4,2444.3,0.81786]
[1750781089152,0.81782,2444.5,2444.4,0.81782]
[1750781089451,35.65982,2444.5,2444.4,0.81782]
[1750781089753,0.81783,2444.4,2444.3,0.81783]
[1750781090049,35.65982,2444.5,2444.4,0.81782]
[1750781090442,0.81782,2444.4,2444.3,0.81783]
[1750781090752,0.81786,2444.3,2444.2,0.81787]
[1750781091044,7.742,2444.5,2443.9,2.75194]
[1750781091244,8.5598,2444.5,2444.4,0.81782]
[1750781092051,7.742,2444.5,2444.4,0.81782]
[1750781092354,47.8324,2444.8,2444.7,0.81772]
[1750781092552,82.6604,2444.8,2444.7,0.81772]
[1750781092852,34.827,2444.9,2444.8,0.81766]
[1750781093253,34.824,2444.9,2444.8,0.81766]
[1750781093652,35.64166,2444.9,2444.8,0.81766]
[1750781094045,34.824,2444.9,2444.8,0.81766]
[1750781094754,7.742,2444.9,2444.8,0.81766]
[1750781095053,34.817,2444.9,2444.8,0.81766]